[Event "Titled Tuesday Blitz January 31 Early 2023"]
[White "Vagman, Roy"]
[Black "Vlassov, Nikolai"]
[WhiteFideId "2828995"]
[BlackFideId "4103360"]
[WhiteElo "2273"]
[BlackElo "2283"]
[Result "0-1"]
[Round "08"]
[TimeControl "180+2"]
[Date "2023.01.31"]
[WhiteClock "0:00:03"]
[BlackClock "0:00:12"]

1. Nf3 {[%clk 0:03:00]}  c5 {[%clk 0:02:58]} 2. c4 {[%clk 0:03:00]}  g6 {[%clk 0:02:58]} 3. Nc3 {[%clk 0:03:00]}  Bg7 {[%clk 0:02:58]} 4. g3 {[%clk 0:03:01]}  Nc6 {[%clk 0:02:58]} 5. Bg2 {[%clk 0:03:02]}  d6 {[%clk 0:02:58]} 6. O-O {[%clk 0:03:03]}  h5 {[%clk 0:02:58]} 7. h4 {[%clk 0:02:56]}  Nh6 {[%clk 0:02:57]} 8. Rb1 {[%clk 0:02:53]}  Nf5 {[%clk 0:02:50]} 9. e3 {[%clk 0:02:51]}  O-O {[%clk 0:02:48]} 10. a3 {[%clk 0:02:46]}  b6 {[%clk 0:02:01]} 11. Qc2 {[%clk 0:02:43]}  Bb7 {[%clk 0:01:59]} 12. d3 {[%clk 0:02:41]}  Rc8 {[%clk 0:01:58]} 13. b4 {[%clk 0:02:28]}  e6 {[%clk 0:01:50]} 14. Nd2 {[%clk 0:02:23]}  g5 {[%clk 0:01:36]} 15. hxg5 {[%clk 0:02:20]}  Qxg5 {[%clk 0:01:34]} 16. Nce4 {[%clk 0:02:04]}  Qg6 {[%clk 0:01:30]} 17. bxc5 {[%clk 0:02:02]}  dxc5 {[%clk 0:01:30]} 18. Nf3 {[%clk 0:00:45]}  Rc7 {[%clk 0:01:19]} 19. Bb2 {[%clk 0:00:43]}  e5 {[%clk 0:01:09]} 20. Nc3 {[%clk 0:00:39]}  Nce7 {[%clk 0:01:03]} 21. Ne4 {[%clk 0:00:33]}  f6 {[%clk 0:00:53]} 22. a4 {[%clk 0:00:29]}  Rd8 {[%clk 0:00:50]} 23. a5 {[%clk 0:00:29]}  Rcd7 {[%clk 0:00:51]} 24. Rbd1 {[%clk 0:00:27]}  h4 {[%clk 0:00:36]} 25. Nxh4 {[%clk 0:00:21]}  Nxh4 {[%clk 0:00:36]} 26. gxh4 {[%clk 0:00:22]}  Nf5 {[%clk 0:00:36]} 27. h5 {[%clk 0:00:12]}  Qxh5 {[%clk 0:00:33]} 28. Ng3 {[%clk 0:00:12]}  Nxg3 {[%clk 0:00:31]} 29. fxg3 {[%clk 0:00:13]}  Bxg2 {[%clk 0:00:29]} 30. Kxg2 {[%clk 0:00:14]}  Qg6 {[%clk 0:00:25]} 31. axb6 {[%clk 0:00:13]}  axb6 {[%clk 0:00:24]} 32. e4 {[%clk 0:00:13]}  Kf7 {[%clk 0:00:19]} 33. Rf3 {[%clk 0:00:12]}  Rh8 {[%clk 0:00:19]} 34. Bxe5 {[%clk 0:00:11]}  Qh5 {[%clk 0:00:19]} 35. Rf2 {[%clk 0:00:03]}  Qxe5 {[%clk 0:00:17]} 36. Rdf1 {[%clk 0:00:03]}  Ke7 {[%clk 0:00:16]} 37. Qe2 {[%clk 0:00:03]}  Qh5 {[%clk 0:00:15]} 38. Qxh5 {[%clk 0:00:02]}  Rxh5 {[%clk 0:00:16]} 39. Rf3 {[%clk 0:00:03]}  Rh8 {[%clk 0:00:15]} 40. Rb1 {[%clk 0:00:03]}  Rd6 {[%clk 0:00:15]} 41. Rb3 {[%clk 0:00:03]}  Rhd8 {[%clk 0:00:15]} 42. g4 {[%clk 0:00:04]}  Bh6 {[%clk 0:00:14]} 43. Kg3 {[%clk 0:00:04]}  Bd2 {[%clk 0:00:14]} 44. Kf2 {[%clk 0:00:05]}  Bb4 {[%clk 0:00:14]} 45. Ke2 {[%clk 0:00:05]}  Ra8 {[%clk 0:00:13]} 46. Rb2 {[%clk 0:00:05]}  Ra3 {[%clk 0:00:13]} 47. Rc2 {[%clk 0:00:01]}  Rc3 {[%clk 0:00:13]} 48. Rxc3 {[%clk 0:00:02]}  Bxc3 {[%clk 0:00:13]} 49. Ke3 {[%clk 0:00:03]}  Bd4+ {[%clk 0:00:13]} 50. Ke2 {[%clk 0:00:03]}  Rd7 {[%clk 0:00:14]} 51. Rh3 {[%clk 0:00:04]}  Ke6 {[%clk 0:00:13]} 52. Kf3 {[%clk 0:00:05]}  Ra7 {[%clk 0:00:13]} 53. Rh6 {[%clk 0:00:03]}  Ra2 {[%clk 0:00:13]} 54. g5 {[%clk 0:00:03]}  Rf2+ {[%clk 0:00:13]} 55. Kg3 {[%clk 0:00:03]}  Rd2 {[%clk 0:00:13]} 56. g6 {[%clk 0:00:04]}  Rxd3+ {[%clk 0:00:12]} 57. Kg4 {[%clk 0:00:04]}  Re3 {[%clk 0:00:12]} 58. Rh8 {[%clk 0:00:04]}  Rxe4+ {[%clk 0:00:12]} 59. Kf3 {[%clk 0:00:04]}  Re3+ {[%clk 0:00:12]} 60. Kg2 {[%clk 0:00:05]}  Be5 {[%clk 0:00:12]} 61. g7 {[%clk 0:00:03]}  Rg3+ {[%clk 0:00:12]} 62. Kf2 {[%clk 0:00:04]}  Rxg7 {[%clk 0:00:13]} 63. Re8+ {[%clk 0:00:04]}  Re7 {[%clk 0:00:13]} 64. Rc8 {[%clk 0:00:04]}  Kf5 {[%clk 0:00:13]} 65. Rc6 {[%clk 0:00:04]}  Bd4+ {[%clk 0:00:12]} 66. Kf3 {[%clk 0:00:04]}  Re3+ {[%clk 0:00:12]} 67. Kg2 {[%clk 0:00:05]}  Rb3 {[%clk 0:00:12]} 68. Rd6 {[%clk 0:00:04]}  Ke4 {[%clk 0:00:12]} 69. Re6+ {[%clk 0:00:04]}  Kd3 {[%clk 0:00:12]} 70. Kf3 {[%clk 0:00:03]}  Kxc4+ {[%clk 0:00:12]} 71. Ke2 {[%clk 0:00:03]}  f5 {[%clk 0:00:12]} 72. Kd1 {[%clk 0:00:03]}  f4 {[%clk 0:00:12]} 73. Re8 {[%clk 0:00:04]}  f3 {[%clk 0:00:12]} 74. Rf8 {[%clk 0:00:04]}  f2 {[%clk 0:00:13]} 75. Kc2 {[%clk 0:00:05]}  Rb2+ {[%clk 0:00:12]} 76. Kc1 {[%clk 0:00:05]}  Re2 {[%clk 0:00:13]} 77. Kd1 {[%clk 0:00:05]}  Re1+ {[%clk 0:00:13]} 78. Kd2 {[%clk 0:00:04]}  f1=Q {[%clk 0:00:13]} 79. Rf3 {[%clk 0:00:03]}  Qe2# {[%clk 0:00:12]} 0-1


[Site "https://www.chess.com"]

[Event "Titled Tuesday Blitz January 31 Early 2023"]
[White "Dehtiarov, Roman"]
[Black "Rodriguez, Santiago"]
[WhiteFideId "14186640"]
[BlackFideId "3000591"]
[WhiteElo "2289"]
[BlackElo "2252"]
[Result "1-0"]
[Round "08"]
[TimeControl "180+2"]
[Date "2023.01.31"]
[WhiteClock "0:02:08"]
[BlackClock "0:02:27"]

1. e4 {[%clk 0:03:00]}  c5 {[%clk 0:02:59]} 2. Nc3 {[%clk 0:03:00]}  Nc6 {[%clk 0:02:59]} 3. f4 {[%clk 0:03:00]}  a6 {[%clk 0:02:57]} 4. Nf3 {[%clk 0:03:01]}  e6 {[%clk 0:02:57]} 5. g3 {[%clk 0:03:01]}  b5 {[%clk 0:02:57]} 6. Bg2 {[%clk 0:02:59]}  Bb7 {[%clk 0:02:57]} 7. O-O {[%clk 0:02:56]}  Nf6 {[%clk 0:02:56]} 8. e5 {[%clk 0:02:54]}  b4 {[%clk 0:02:55]} 9. exf6 {[%clk 0:02:49]}  bxc3 {[%clk 0:02:55]} 10. fxg7 {[%clk 0:02:50]}  Bxg7 {[%clk 0:02:56]} 11. dxc3 {[%clk 0:02:47]}  Qb6 {[%clk 0:02:53]} 12. Be3 {[%clk 0:02:44]}  Qxb2 {[%clk 0:02:50]} 13. Rb1 {[%clk 0:02:41]}  Qxc3 {[%clk 0:02:50]} 14. Rb3 {[%clk 0:02:42]}  Qxb3 {[%clk 0:02:37]} 15. axb3 {[%clk 0:02:35]}  d5 {[%clk 0:02:32]} 16. Bxc5 {[%clk 0:02:34]}  Rc8 {[%clk 0:02:31]} 17. Bd4 {[%clk 0:02:27]}  f6 {[%clk 0:02:30]} 18. Re1 {[%clk 0:02:26]}  Kf7 {[%clk 0:02:30]} 19. Bh3 {[%clk 0:02:22]}  Nxd4 {[%clk 0:02:27]} 20. Nxd4 {[%clk 0:02:08]} 1-0


[Site "https://www.chess.com"]

[Event "Titled Tuesday Blitz January 31 Early 2023"]
[White "Jimenez, Joaquin"]
[Black "Piesik, Piotr"]
[WhiteFideId "109860"]
[BlackFideId "1136194"]
[WhiteElo "2195"]
[BlackElo "2426"]
[Result "0-1"]
[Round "08"]
[TimeControl "180+2"]
[Date "2023.01.31"]
[WhiteClock "0:02:09"]
[BlackClock "0:02:09"]

1. e4 {[%clk 0:03:00]}  g6 {[%clk 0:03:00]} 2. d4 {[%clk 0:03:00]}  Bg7 {[%clk 0:03:00]} 3. Nc3 {[%clk 0:03:00]}  c6 {[%clk 0:03:01]} 4. Be3 {[%clk 0:02:53]}  d5 {[%clk 0:03:01]} 5. e5 {[%clk 0:02:53]}  Nh6 {[%clk 0:03:00]} 6. Qd2 {[%clk 0:02:50]}  Nf5 {[%clk 0:03:00]} 7. O-O-O {[%clk 0:02:49]}  Nxe3 {[%clk 0:03:00]} 8. fxe3 {[%clk 0:02:49]}  f6 {[%clk 0:02:59]} 9. exf6 {[%clk 0:02:48]}  exf6 {[%clk 0:03:00]} 10. e4 {[%clk 0:02:45]}  O-O {[%clk 0:02:56]} 11. exd5 {[%clk 0:02:45]}  cxd5 {[%clk 0:02:56]} 12. Nf3 {[%clk 0:02:44]}  Nc6 {[%clk 0:02:56]} 13. Kb1 {[%clk 0:02:44]}  Bf5 {[%clk 0:02:53]} 14. Bb5 {[%clk 0:02:43]}  Nb4 {[%clk 0:02:50]} 15. Ne1 {[%clk 0:02:38]}  a6 {[%clk 0:02:45]} 16. Ba4 {[%clk 0:02:38]}  Rf7 {[%clk 0:02:35]} 17. a3 {[%clk 0:02:32]}  Nc6 {[%clk 0:02:35]} 18. Nf3 {[%clk 0:02:29]}  Na5 {[%clk 0:02:33]} 19. Qf2 {[%clk 0:02:16]}  b5 {[%clk 0:02:32]} 20. Nxb5 {[%clk 0:02:11]}  axb5 {[%clk 0:02:31]} 21. Bxb5 {[%clk 0:02:12]}  Qb6 {[%clk 0:02:26]} 22. a4 {[%clk 0:02:11]}  Qxb5 {[%clk 0:02:08]} 23. axb5 {[%clk 0:02:09]}  Nb3 {[%clk 0:02:09]} 0-1


[Site "https://www.chess.com"]

[Event "Titled Tuesday Blitz January 31 Early 2023"]
[White "Taspinar, Yanki"]
[Black "Gjestemoen-VonHirsch, Andre"]
[WhiteFideId "34561188"]
[BlackFideId "1539531"]
[WhiteElo "2262"]
[BlackElo "2314"]
[Result "1-0"]
[Round "08"]
[TimeControl "180+2"]
[Date "2023.01.31"]
[WhiteClock "0:00:07"]
[BlackClock "0:00:04"]

1. Nf3 {[%clk 0:02:58]}  Nf6 {[%clk 0:02:57]} 2. c4 {[%clk 0:02:58]}  g6 {[%clk 0:02:56]} 3. g3 {[%clk 0:02:58]}  Bg7 {[%clk 0:02:56]} 4. Bg2 {[%clk 0:02:59]}  O-O {[%clk 0:02:56]} 5. O-O {[%clk 0:02:59]}  c6 {[%clk 0:02:57]} 6. d4 {[%clk 0:03:00]}  d5 {[%clk 0:02:57]} 7. Qb3 {[%clk 0:02:52]}  dxc4 {[%clk 0:02:51]} 8. Qxc4 {[%clk 0:02:52]}  Be6 {[%clk 0:02:51]} 9. Qd3 {[%clk 0:02:51]}  Bf5 {[%clk 0:02:51]} 10. Qc4 {[%clk 0:02:49]}  Be6 {[%clk 0:02:50]} 11. Qc2 {[%clk 0:02:46]}  Bf5 {[%clk 0:02:50]} 12. Qd1 {[%clk 0:02:44]}  Nbd7 {[%clk 0:02:46]} 13. Nc3 {[%clk 0:02:44]}  Qb6 {[%clk 0:02:34]} 14. b3 {[%clk 0:02:37]}  Ne4 {[%clk 0:02:23]} 15. Bb2 {[%clk 0:02:32]}  Nxc3 {[%clk 0:02:22]} 16. Bxc3 {[%clk 0:02:33]}  Be4 {[%clk 0:02:23]} 17. Qd2 {[%clk 0:02:28]}  Bxf3 {[%clk 0:01:35]} 18. Bxf3 {[%clk 0:02:26]}  e5 {[%clk 0:01:35]} 19. d5 {[%clk 0:02:08]}  cxd5 {[%clk 0:01:30]} 20. Qxd5 {[%clk 0:02:07]}  Nc5 {[%clk 0:01:11]} 21. Rfd1 {[%clk 0:01:50]}  Rad8 {[%clk 0:01:08]} 22. Qc4 {[%clk 0:01:50]}  Ne6 {[%clk 0:00:54]} 23. Bd5 {[%clk 0:01:34]}  Nd4 {[%clk 0:00:45]} 24. Bxd4 {[%clk 0:00:14]}  exd4 {[%clk 0:00:45]} 25. Rac1 {[%clk 0:00:14]}  Rd7 {[%clk 0:00:16]} 26. a4 {[%clk 0:00:12]}  Rfd8 {[%clk 0:00:15]} 27. Bf3 {[%clk 0:00:12]}  Qf6 {[%clk 0:00:13]} 28. Rd3 {[%clk 0:00:08]}  Qe5 {[%clk 0:00:09]} 29. Qb4 {[%clk 0:00:07]}  a5 {[%clk 0:00:06]} 30. Qb6 {[%clk 0:00:06]}  Bf8 {[%clk 0:00:01]} 31. Rc4 {[%clk 0:00:05]}  Bb4 {[%clk 0:00:01]} 32. Kg2 {[%clk 0:00:04]}  h5 {[%clk 0:00:01]} 33. h4 {[%clk 0:00:04]}  Qe6 {[%clk 0:00:01]} 34. Qb5 {[%clk 0:00:02]}  Kg7 {[%clk 0:00:01]} 35. Rc1 {[%clk 0:00:02]}  Qe5 {[%clk 0:00:01]} 36. Rcd1 {[%clk 0:00:02]}  Qxb5 {[%clk 0:00:01]} 37. axb5 {[%clk 0:00:03]}  Bc5 {[%clk 0:00:01]} 38. e3 {[%clk 0:00:02]}  b6 {[%clk 0:00:02]} 39. Bc6 {[%clk 0:00:02]}  Rd6 {[%clk 0:00:02]} 40. e4 {[%clk 0:00:03]}  f6 {[%clk 0:00:02]} 41. f4 {[%clk 0:00:03]}  Re6 {[%clk 0:00:02]} 42. Kf3 {[%clk 0:00:04]}  Rde8 {[%clk 0:00:02]} 43. Rc1 {[%clk 0:00:04]}  R8e7 {[%clk 0:00:03]} 44. Bd5 {[%clk 0:00:04]}  Rd6 {[%clk 0:00:03]} 45. Bc6 {[%clk 0:00:05]}  f5 {[%clk 0:00:03]} 46. e5 {[%clk 0:00:05]}  Rd8 {[%clk 0:00:03]} 47. Rc4 {[%clk 0:00:04]}  Kf7 {[%clk 0:00:04]} 48. Rc1 {[%clk 0:00:04]}  Ke6 {[%clk 0:00:04]} 49. Ke2 {[%clk 0:00:04]}  Rc7 {[%clk 0:00:05]} 50. Rdd1 {[%clk 0:00:05]}  Rxc6 {[%clk 0:00:05]} 51. bxc6 {[%clk 0:00:05]}  Rc8 {[%clk 0:00:06]} 52. Kd3 {[%clk 0:00:04]}  Rxc6 {[%clk 0:00:07]} 53. Rc4 {[%clk 0:00:05]}  b5 {[%clk 0:00:07]} 54. Rc2 {[%clk 0:00:04]}  Kd5 {[%clk 0:00:07]} 55. Rdc1 {[%clk 0:00:05]}  a4 {[%clk 0:00:08]} 56. bxa4 {[%clk 0:00:05]}  bxa4 {[%clk 0:00:08]} 57. Ra2 {[%clk 0:00:04]}  a3 {[%clk 0:00:08]} 58. Rb1 {[%clk 0:00:04]}  Be7 {[%clk 0:00:07]} 59. Rb5+ {[%clk 0:00:04]}  Bc5 {[%clk 0:00:07]} 60. Rxa3 {[%clk 0:00:03]}  Ke6 {[%clk 0:00:05]} 61. Raa5 {[%clk 0:00:02]}  Be7 {[%clk 0:00:03]} 62. Ra7 {[%clk 0:00:02]}  Bd8 {[%clk 0:00:03]} 63. Kxd4 {[%clk 0:00:02]}  Bb6+ {[%clk 0:00:03]} 64. Rxb6 {[%clk 0:00:02]}  Rxb6 {[%clk 0:00:04]} 65. Rg7 {[%clk 0:00:02]}  Rb4+ {[%clk 0:00:04]} 66. Kc3 {[%clk 0:00:03]}  Re4 {[%clk 0:00:04]} 67. Rxg6+ {[%clk 0:00:03]}  Kd5 {[%clk 0:00:04]} 68. Rd6+ {[%clk 0:00:03]}  Kc5 {[%clk 0:00:05]} 69. Kd3 {[%clk 0:00:04]}  Ra4 {[%clk 0:00:04]} 70. Rg6 {[%clk 0:00:04]}  Ra3+ {[%clk 0:00:05]} 71. Kc2 {[%clk 0:00:05]}  Kd4 {[%clk 0:00:04]} 72. Rg5 {[%clk 0:00:05]}  Ra2+ {[%clk 0:00:03]} 73. Kb3 {[%clk 0:00:06]}  Rg2 {[%clk 0:00:02]} 74. Kb4 {[%clk 0:00:05]}  Kd5 {[%clk 0:00:03]} 75. Rxf5 {[%clk 0:00:05]}  Rxg3 {[%clk 0:00:03]} 76. Rxh5 {[%clk 0:00:04]}  Rg4 {[%clk 0:00:03]} 77. Rf5 {[%clk 0:00:05]}  Ke6 {[%clk 0:00:03]} 78. Rf6+ {[%clk 0:00:05]}  Ke7 {[%clk 0:00:03]} 79. Kc5 {[%clk 0:00:05]}  Rxh4 {[%clk 0:00:04]} 80. Kd5 {[%clk 0:00:06]}  Rh1 {[%clk 0:00:03]} 81. Ke4 {[%clk 0:00:07]}  Rd1 {[%clk 0:00:04]} 82. Ra6 {[%clk 0:00:06]}  Re1+ {[%clk 0:00:04]} 83. Kf5 {[%clk 0:00:07]}  Ke8 {[%clk 0:00:04]} 84. Ra7 {[%clk 0:00:07]}  Rf1 {[%clk 0:00:03]} 85. e6 {[%clk 0:00:07]}  Re1 {[%clk 0:00:04]} 86. Kf6 {[%clk 0:00:07]}  Rd1 {[%clk 0:00:04]} 87. Ra8+ {[%clk 0:00:07]}  Rd8 {[%clk 0:00:04]} 88. Rxd8+ {[%clk 0:00:07]} 1-0


[Site "https://www.chess.com"]

[Event "Titled Tuesday Blitz January 31 Early 2023"]
[White "Zhigalko, Sergei"]
[Black "Sharapov, Evgeny"]
[WhiteFideId "13502956"]
[BlackFideId "14103133"]
[WhiteElo "2572"]
[BlackElo "2375"]
[Result "1-0"]
[Round "08"]
[TimeControl "180+2"]
[Date "2023.01.31"]
[WhiteClock "0:00:05"]
[BlackClock "0:00:19"]

1. e4 {[%clk 0:03:00]}  c6 {[%clk 0:02:58]} 2. d4 {[%clk 0:03:00]}  d5 {[%clk 0:02:58]} 3. e5 {[%clk 0:03:01]}  c5 {[%clk 0:02:58]} 4. Nf3 {[%clk 0:03:01]}  cxd4 {[%clk 0:02:58]} 5. Qxd4 {[%clk 0:03:02]}  Nc6 {[%clk 0:02:58]} 6. Qf4 {[%clk 0:03:03]}  e6 {[%clk 0:02:58]} 7. Bd3 {[%clk 0:03:03]}  Nge7 {[%clk 0:02:58]} 8. O-O {[%clk 0:03:02]}  Ng6 {[%clk 0:02:56]} 9. Qg3 {[%clk 0:03:03]}  Be7 {[%clk 0:02:56]} 10. Re1 {[%clk 0:03:02]}  O-O {[%clk 0:02:56]} 11. a3 {[%clk 0:02:59]}  b6 {[%clk 0:02:54]} 12. Nc3 {[%clk 0:02:56]}  a5 {[%clk 0:02:54]} 13. Nb5 {[%clk 0:02:51]}  Ba6 {[%clk 0:02:53]} 14. Bd2 {[%clk 0:02:45]}  Bxb5 {[%clk 0:02:53]} 15. Bxb5 {[%clk 0:02:45]}  Qc7 {[%clk 0:02:51]} 16. Bd3 {[%clk 0:02:40]}  Qd8 {[%clk 0:02:38]} 17. Rad1 {[%clk 0:02:37]}  Rc8 {[%clk 0:02:29]} 18. Ng5 {[%clk 0:02:28]}  Nd4 {[%clk 0:02:19]} 19. c3 {[%clk 0:02:04]}  Nb3 {[%clk 0:02:16]} 20. Be3 {[%clk 0:02:03]}  Nc5 {[%clk 0:02:08]} 21. Bc2 {[%clk 0:02:02]}  Qc7 {[%clk 0:02:03]} 22. h4 {[%clk 0:01:43]}  h6 {[%clk 0:01:41]} 23. Nxf7 {[%clk 0:01:39]}  Nxh4 {[%clk 0:01:28]} 24. Nxh6+ {[%clk 0:01:16]}  Kh8 {[%clk 0:01:28]} 25. Ng4 {[%clk 0:01:07]}  Ne4 {[%clk 0:01:28]} 26. Qh3 {[%clk 0:00:56]}  Kg8 {[%clk 0:01:25]} 27. f3 {[%clk 0:00:39]}  Nc5 {[%clk 0:01:24]} 28. Bf2 {[%clk 0:00:35]}  Nf5 {[%clk 0:01:21]} 29. Ne3 {[%clk 0:00:34]}  Qd7 {[%clk 0:01:03]} 30. Nxf5 {[%clk 0:00:29]}  exf5 {[%clk 0:01:03]} 31. e6 {[%clk 0:00:30]}  Qb5 {[%clk 0:00:57]} 32. Bxf5 {[%clk 0:00:29]}  Rxf5 {[%clk 0:00:57]} 33. Qxf5 {[%clk 0:00:28]}  Rf8 {[%clk 0:00:56]} 34. Qc2 {[%clk 0:00:20]}  Qc6 {[%clk 0:00:46]} 35. Re5 {[%clk 0:00:16]}  Nxe6 {[%clk 0:00:43]} 36. Rde1 {[%clk 0:00:08]}  Rf6 {[%clk 0:00:38]} 37. Qd2 {[%clk 0:00:08]}  Bc5 {[%clk 0:00:33]} 38. Qxd5 {[%clk 0:00:06]}  Qxd5 {[%clk 0:00:33]} 39. Rxd5 {[%clk 0:00:07]}  Bxf2+ {[%clk 0:00:33]} 40. Kxf2 {[%clk 0:00:08]}  Nc5 {[%clk 0:00:32]} 41. Re2 {[%clk 0:00:06]}  Kf7 {[%clk 0:00:30]} 42. g4 {[%clk 0:00:06]}  Ne6 {[%clk 0:00:25]} 43. Rf5 {[%clk 0:00:05]}  Rxf5 {[%clk 0:00:24]} 44. gxf5 {[%clk 0:00:06]}  Nf4 {[%clk 0:00:24]} 45. Rd2 {[%clk 0:00:06]}  b5 {[%clk 0:00:23]} 46. Ke3 {[%clk 0:00:06]}  Nh5 {[%clk 0:00:22]} 47. Rd5 {[%clk 0:00:05]}  Ng3 {[%clk 0:00:19]} 48. Rxb5 {[%clk 0:00:04]}  Kf6 {[%clk 0:00:19]} 49. Rxa5 {[%clk 0:00:04]}  Nxf5+ {[%clk 0:00:19]} 50. Rxf5+ {[%clk 0:00:04]}  Kxf5 {[%clk 0:00:19]} 51. a4 {[%clk 0:00:05]} 1-0


[Site "https://www.chess.com"]

[Event "Titled Tuesday Blitz January 31 Early 2023"]
[White "Gurevich, Dmitry"]
[Black "Ibarra Jerez, Jose Carlos"]
[WhiteFideId "2000407"]
[BlackFideId "2226332"]
[WhiteElo "2393"]
[BlackElo "2563"]
[Result "0-1"]
[Round "08"]
[TimeControl "180+2"]
[Date "2023.01.31"]
[WhiteClock "0:00:10"]
[BlackClock "0:00:32"]

1. d4 {[%clk 0:03:00]}  Nf6 {[%clk 0:02:59]} 2. c4 {[%clk 0:03:00]}  d6 {[%clk 0:02:59]} 3. Nc3 {[%clk 0:03:00]}  e5 {[%clk 0:03:00]} 4. dxe5 {[%clk 0:02:54]}  dxe5 {[%clk 0:03:00]} 5. Qxd8+ {[%clk 0:02:53]}  Kxd8 {[%clk 0:03:01]} 6. Nf3 {[%clk 0:02:48]}  Nfd7 {[%clk 0:03:01]} 7. g4 {[%clk 0:02:43]}  c6 {[%clk 0:03:00]} 8. g5 {[%clk 0:02:43]}  a5 {[%clk 0:03:00]} 9. h4 {[%clk 0:02:39]}  Na6 {[%clk 0:02:58]} 10. Be3 {[%clk 0:02:35]}  Bc5 {[%clk 0:02:55]} 11. Bxc5 {[%clk 0:02:34]}  Naxc5 {[%clk 0:02:56]} 12. O-O-O {[%clk 0:02:33]}  Ke7 {[%clk 0:02:57]} 13. h5 {[%clk 0:02:29]}  f6 {[%clk 0:02:57]} 14. h6 {[%clk 0:02:28]}  g6 {[%clk 0:02:55]} 15. gxf6+ {[%clk 0:02:25]}  Kxf6 {[%clk 0:02:56]} 16. Nd2 {[%clk 0:02:17]}  Ke7 {[%clk 0:02:53]} 17. Bh3 {[%clk 0:02:13]}  Nf6 {[%clk 0:02:48]} 18. Bxc8 {[%clk 0:02:07]}  Raxc8 {[%clk 0:02:49]} 19. Nf3 {[%clk 0:02:07]}  Ng4 {[%clk 0:02:41]} 20. Rdf1 {[%clk 0:01:34]}  Rcf8 {[%clk 0:02:37]} 21. Rh4 {[%clk 0:01:30]}  Rf4 {[%clk 0:02:19]} 22. Nxe5 {[%clk 0:01:28]}  Nxe5 {[%clk 0:02:16]} 23. Rxf4 {[%clk 0:01:27]}  Ned3+ {[%clk 0:02:17]} 24. exd3 {[%clk 0:01:27]}  Nxd3+ {[%clk 0:02:18]} 25. Kc2 {[%clk 0:01:21]}  Nxf4 {[%clk 0:02:19]} 26. Re1+ {[%clk 0:01:21]}  Kd7 {[%clk 0:02:12]} 27. Ne4 {[%clk 0:01:19]}  Ne6 {[%clk 0:02:02]} 28. Nf6+ {[%clk 0:01:14]}  Ke7 {[%clk 0:02:02]} 29. Nd5+ {[%clk 0:01:14]}  Kd6 {[%clk 0:01:58]} 30. Nf6 {[%clk 0:01:13]}  Rf8 {[%clk 0:01:55]} 31. Ne4+ {[%clk 0:01:08]}  Kd7 {[%clk 0:01:52]} 32. Kc3 {[%clk 0:01:04]}  Rf4 {[%clk 0:01:38]} 33. Re3 {[%clk 0:01:04]}  b6 {[%clk 0:01:28]} 34. a3 {[%clk 0:01:02]}  a4 {[%clk 0:01:24]} 35. f3 {[%clk 0:00:50]}  c5 {[%clk 0:01:13]} 36. Rd3+ {[%clk 0:00:40]}  Ke7 {[%clk 0:01:05]} 37. Nd6 {[%clk 0:00:34]}  Kd7 {[%clk 0:00:50]} 38. Nf7+ {[%clk 0:00:23]}  Kc7 {[%clk 0:00:42]} 39. Nd6 {[%clk 0:00:18]}  Nd4 {[%clk 0:00:38]} 40. Ne4 {[%clk 0:00:17]}  Nxf3 {[%clk 0:00:33]} 41. Nd6 {[%clk 0:00:15]}  Nd4 {[%clk 0:00:32]} 42. Ne4 {[%clk 0:00:10]}  Rxe4 {[%clk 0:00:32]} 0-1


[Site "https://www.chess.com"]

[Event "Titled Tuesday Blitz January 31 Early 2023"]
[White "Ristic, Nebojsa B"]
[Black "Maksimovic, Bojan"]
[WhiteFideId "935468"]
[BlackFideId "14408120"]
[WhiteElo "2236"]
[BlackElo "2486"]
[Result "1-0"]
[Round "08"]
[TimeControl "180+2"]
[Date "2023.01.31"]
[WhiteClock "0:00:04"]
[BlackClock "0:00:01"]

1. d4 {[%clk 0:03:00]}  Nf6 {[%clk 0:02:53]} 2. Bf4 {[%clk 0:02:59]}  d6 {[%clk 0:02:52]} 3. Nc3 {[%clk 0:02:58]}  Nbd7 {[%clk 0:02:52]} 4. Nf3 {[%clk 0:02:58]}  c6 {[%clk 0:02:50]} 5. e4 {[%clk 0:02:58]}  Qa5 {[%clk 0:02:50]} 6. Qd2 {[%clk 0:02:47]}  e5 {[%clk 0:02:50]} 7. Bg3 {[%clk 0:02:32]}  Be7 {[%clk 0:02:49]} 8. Bd3 {[%clk 0:02:17]}  O-O {[%clk 0:02:47]} 9. O-O {[%clk 0:02:16]}  Qc7 {[%clk 0:02:45]} 10. a4 {[%clk 0:02:14]}  b6 {[%clk 0:02:44]} 11. Rad1 {[%clk 0:02:13]}  a6 {[%clk 0:02:43]} 12. Nh4 {[%clk 0:02:10]}  Re8 {[%clk 0:02:42]} 13. Nf5 {[%clk 0:02:08]}  Bf8 {[%clk 0:02:42]} 14. dxe5 {[%clk 0:01:50]}  Nxe5 {[%clk 0:02:39]} 15. Qg5 {[%clk 0:01:38]}  Kh8 {[%clk 0:02:08]} 16. f4 {[%clk 0:01:26]}  Nxd3 {[%clk 0:01:43]} 17. cxd3 {[%clk 0:01:27]}  h6 {[%clk 0:01:38]} 18. Nxh6 {[%clk 0:01:25]}  Nh7 {[%clk 0:01:38]} 19. Qh5 {[%clk 0:00:57]}  gxh6 {[%clk 0:01:37]} 20. e5 {[%clk 0:00:57]}  Qd7 {[%clk 0:00:58]} 21. Ne4 {[%clk 0:00:44]}  d5 {[%clk 0:00:43]} 22. Nf6 {[%clk 0:00:26]}  Nxf6 {[%clk 0:00:40]} 23. exf6 {[%clk 0:00:27]}  Qf5 {[%clk 0:00:16]} 24. Qxf7 {[%clk 0:00:25]}  Be6 {[%clk 0:00:16]} 25. Qc7 {[%clk 0:00:21]}  Rac8 {[%clk 0:00:15]} 26. Qxb6 {[%clk 0:00:21]}  Qxf6 {[%clk 0:00:16]} 27. f5 {[%clk 0:00:21]}  Bxf5 {[%clk 0:00:15]} 28. Bf2 {[%clk 0:00:19]}  Qg6 {[%clk 0:00:15]} 29. Bd4+ {[%clk 0:00:15]}  Kh7 {[%clk 0:00:15]} 30. Rf2 {[%clk 0:00:14]}  Bxd3 {[%clk 0:00:15]} 31. Qb7+ {[%clk 0:00:12]}  Kg8 {[%clk 0:00:09]} 32. Rf3 {[%clk 0:00:13]}  Be2 {[%clk 0:00:05]} 33. Rg3 {[%clk 0:00:10]}  Qxg3 {[%clk 0:00:05]} 34. hxg3 {[%clk 0:00:10]}  Bxd1 {[%clk 0:00:04]} 35. Qxa6 {[%clk 0:00:08]}  Bh5 {[%clk 0:00:02]} 36. Qd3 {[%clk 0:00:04]}  c5 {[%clk 0:00:02]} 37. Bc3 {[%clk 0:00:04]}  Re6 {[%clk 0:00:01]} 38. Bd2 {[%clk 0:00:04]}  Bg6 {[%clk 0:00:01]} 39. Qxd5 {[%clk 0:00:04]}  Re8 {[%clk 0:00:01]} 40. Bc3 {[%clk 0:00:04]}  Be4 {[%clk 0:00:01]} 41. Qc4 {[%clk 0:00:03]}  Kh7 {[%clk 0:00:01]} 42. Qxc5 {[%clk 0:00:03]}  Rg6 {[%clk 0:00:01]} 43. Qc4 {[%clk 0:00:04]} 1-0


[Site "https://www.chess.com"]